[Event "Titled Tuesday Blitz July 4 Early 2023"]
[White "Kovacsy, Barnabas"]
[Black "Girya, Olga"]
[WhiteFideId "769290"]
[BlackFideId "4195752"]
[WhiteElo "2343"]
[BlackElo "2635"]
[Result "1-0"]
[Round "1"]
[TimeControl "180+2"]
[Date "2023.07.04"]
[WhiteClock "0:00:25"]
[BlackClock "0:00:01"]
[Board "142"]

1. e4 {[%clk 0:02:59]}  e5 {[%clk 0:02:59]} 2. Nf3 {[%clk 0:02:59]}  Nc6 {[%clk 0:03:00]} 3. Bb5 {[%clk 0:02:59]}  a6 {[%clk 0:03:00]} 4. Bxc6 {[%clk 0:02:59]}  dxc6 {[%clk 0:02:58]} 5. Nc3 {[%clk 0:03:00]}  Qf6 {[%clk 0:02:57]} 6. d4 {[%clk 0:02:54]}  exd4 {[%clk 0:02:56]} 7. Qxd4 {[%clk 0:02:55]}  Qxd4 {[%clk 0:02:55]} 8. Nxd4 {[%clk 0:02:56]}  Nf6 {[%clk 0:02:45]} 9. Bd2 {[%clk 0:02:33]}  c5 {[%clk 0:02:39]} 10. Nb3 {[%clk 0:02:30]}  Be6 {[%clk 0:02:37]} 11. O-O-O {[%clk 0:02:27]}  O-O-O {[%clk 0:02:36]} 12. Bg5 {[%clk 0:02:20]}  Be7 {[%clk 0:02:28]} 13. e5 {[%clk 0:02:05]}  Bxb3 {[%clk 0:01:51]} 14. axb3 {[%clk 0:01:37]}  Nd5 {[%clk 0:01:35]} 15. Nxd5 {[%clk 0:01:19]}  Bxg5+ {[%clk 0:01:35]} 16. f4 {[%clk 0:01:18]}  Bh6 {[%clk 0:00:55]} 17. Ne7+ {[%clk 0:00:53]}  Kb8 {[%clk 0:00:54]} 18. g3 {[%clk 0:00:52]}  g6 {[%clk 0:00:37]} 19. Rxd8+ {[%clk 0:00:46]}  Rxd8 {[%clk 0:00:36]} 20. Rd1 {[%clk 0:00:47]}  Re8 {[%clk 0:00:32]} 21. Nd5 {[%clk 0:00:46]}  Rxe5 {[%clk 0:00:29]} 22. c4 {[%clk 0:00:38]}  Re2 {[%clk 0:00:24]} 23. Rd2 {[%clk 0:00:38]}  Rxd2 {[%clk 0:00:22]} 24. Kxd2 {[%clk 0:00:39]}  Bg7 {[%clk 0:00:20]} 25. Kc2 {[%clk 0:00:39]}  c6 {[%clk 0:00:18]} 26. Ne3 {[%clk 0:00:31]}  h5 {[%clk 0:00:18]} 27. h3 {[%clk 0:00:29]}  Bd4 {[%clk 0:00:18]} 28. Nf1 {[%clk 0:00:28]}  Kc7 {[%clk 0:00:18]} 29. g4 {[%clk 0:00:28]}  hxg4 {[%clk 0:00:13]} 30. hxg4 {[%clk 0:00:28]}  Kd6 {[%clk 0:00:12]} 31. Ng3 {[%clk 0:00:28]}  Ke6 {[%clk 0:00:12]} 32. Ne4 {[%clk 0:00:26]}  f5 {[%clk 0:00:12]} 33. gxf5+ {[%clk 0:00:25]}  Kxf5 {[%clk 0:00:11]} 34. Nd6+ {[%clk 0:00:25]}  Kxf4 {[%clk 0:00:11]} 35. Nxb7 {[%clk 0:00:25]}  g5 {[%clk 0:00:12]} 36. Kd3 {[%clk 0:00:25]}  Kf3 {[%clk 0:00:11]} 37. Nd6 {[%clk 0:00:23]}  g4 {[%clk 0:00:12]} 38. Ne4 {[%clk 0:00:24]}  g3 {[%clk 0:00:12]} 39. Nd2+ {[%clk 0:00:24]}  Kf2 {[%clk 0:00:12]} 40. Ne4+ {[%clk 0:00:24]}  Kf3 {[%clk 0:00:12]} 41. Nd2+ {[%clk 0:00:24]}  Kf4 {[%clk 0:00:07]} 42. Ke2 {[%clk 0:00:24]}  Bxb2 {[%clk 0:00:07]} 43. Nf3 {[%clk 0:00:25]}  Bd4 {[%clk 0:00:07]} 44. Ne1 {[%clk 0:00:25]}  Ke4 {[%clk 0:00:07]} 45. Ng2 {[%clk 0:00:26]}  a5 {[%clk 0:00:07]} 46. Nh4 {[%clk 0:00:26]}  Bf2 {[%clk 0:00:07]} 47. Ng2 {[%clk 0:00:25]}  Kd4 {[%clk 0:00:07]} 48. Kd2 {[%clk 0:00:26]}  Bg1 {[%clk 0:00:06]} 49. Nh4 {[%clk 0:00:24]}  Be3+ {[%clk 0:00:07]} 50. Kc2 {[%clk 0:00:24]}  Bg5 {[%clk 0:00:07]} 51. Nf3+ {[%clk 0:00:24]}  Ke3 {[%clk 0:00:04]} 52. Nxg5 {[%clk 0:00:25]}  g2 {[%clk 0:00:02]} 53. Nh3 {[%clk 0:00:25]}  Kf3 {[%clk 0:00:02]} 54. Ng1+ {[%clk 0:00:25]}  Kf2 {[%clk 0:00:02]} 55. Nh3+ {[%clk 0:00:26]}  Kf1 {[%clk 0:00:03]} 56. Kb2 {[%clk 0:00:22]}  g1=Q {[%clk 0:00:03]} 57. Nxg1 {[%clk 0:00:22]}  Kxg1 {[%clk 0:00:04]} 58. Ka3 {[%clk 0:00:23]}  Kf2 {[%clk 0:00:05]} 59. Ka4 {[%clk 0:00:24]}  Ke3 {[%clk 0:00:05]} 60. Kxa5 {[%clk 0:00:25]}  Ke4 {[%clk 0:00:03]} 61. Kb6 {[%clk 0:00:25]}  Kd4 {[%clk 0:00:03]} 62. Kxc6 {[%clk 0:00:25]}  Kc3 {[%clk 0:00:01]} 63. Kxc5 {[%clk 0:00:25]} 1-0


[Site "https://www.chess.com"]

[Event "Titled Tuesday Blitz July 4 Early 2023"]
[White "Manukyan, Sargis V."]
[Black "Nithyalakshmi, Sivanesan"]
[WhiteFideId "13303465"]
[BlackFideId "5706955"]
[WhiteElo "2631"]
[BlackElo "2342"]
[Result "1-0"]
[Round "1"]
[TimeControl "180+2"]
[Date "2023.07.04"]
[WhiteClock "0:00:34"]
[BlackClock "0:00:00"]
[Board "143"]

1. d4 {[%clk 0:03:00]}  Nf6 {[%clk 0:02:58]} 2. Nc3 {[%clk 0:02:59]}  d5 {[%clk 0:02:55]} 3. Bf4 {[%clk 0:02:58]}  c6 {[%clk 0:02:43]} 4. e3 {[%clk 0:02:54]}  Bf5 {[%clk 0:02:35]} 5. Bd3 {[%clk 0:02:54]}  Bg6 {[%clk 0:02:27]} 6. Nf3 {[%clk 0:02:52]}  Qb6 {[%clk 0:02:26]} 7. Rb1 {[%clk 0:02:51]}  Nbd7 {[%clk 0:02:20]} 8. Ne5 {[%clk 0:02:40]}  Bxd3 {[%clk 0:02:11]} 9. cxd3 {[%clk 0:02:39]}  e6 {[%clk 0:02:10]} 10. O-O {[%clk 0:02:37]}  c5 {[%clk 0:02:05]} 11. Na4 {[%clk 0:02:35]}  Qd8 {[%clk 0:01:57]} 12. Nxc5 {[%clk 0:02:24]}  Nxc5 {[%clk 0:01:57]} 13. dxc5 {[%clk 0:02:25]}  Bxc5 {[%clk 0:01:57]} 14. d4 {[%clk 0:02:25]}  Bd6 {[%clk 0:01:56]} 15. Qa4+ {[%clk 0:02:25]}  Kf8 {[%clk 0:01:46]} 16. Rfc1 {[%clk 0:02:19]}  h6 {[%clk 0:01:39]} 17. h3 {[%clk 0:02:19]}  g5 {[%clk 0:01:37]} 18. Bh2 {[%clk 0:02:18]}  Kg7 {[%clk 0:01:36]} 19. b4 {[%clk 0:02:15]}  Ne4 {[%clk 0:01:35]} 20. a3 {[%clk 0:01:57]}  h5 {[%clk 0:01:04]} 21. f3 {[%clk 0:01:46]}  Nf6 {[%clk 0:00:55]} 22. Rb2 {[%clk 0:01:39]}  Rc8 {[%clk 0:00:51]} 23. Rbc2 {[%clk 0:01:34]}  Rxc2 {[%clk 0:00:49]} 24. Qxc2 {[%clk 0:01:34]}  g4 {[%clk 0:00:37]} 25. fxg4 {[%clk 0:01:19]}  hxg4 {[%clk 0:00:35]} 26. hxg4 {[%clk 0:01:19]}  Ne4 {[%clk 0:00:14]} 27. Rf1 {[%clk 0:01:14]}  Rxh2 {[%clk 0:00:09]} 28. Rxf7+ {[%clk 0:01:12]}  Kg8 {[%clk 0:00:08]} 29. Rd7 {[%clk 0:01:00]}  Qh4 {[%clk 0:00:07]} 30. Qc8+ {[%clk 0:00:58]}  Bf8 {[%clk 0:00:07]} 31. Qxf8+ {[%clk 0:00:49]}  Kxf8 {[%clk 0:00:06]} 32. Ng6+ {[%clk 0:00:50]}  Kg8 {[%clk 0:00:06]} 33. Nxh4 {[%clk 0:00:49]}  Rxh4 {[%clk 0:00:07]} 34. Rxb7 {[%clk 0:00:49]}  Rxg4 {[%clk 0:00:07]} 35. Rxa7 {[%clk 0:00:49]}  Rg3 {[%clk 0:00:07]} 36. b5 {[%clk 0:00:43]}  Rxe3 {[%clk 0:00:07]} 37. b6 {[%clk 0:00:43]}  Rb3 {[%clk 0:00:05]} 38. b7 {[%clk 0:00:44]}  Nd6 {[%clk 0:00:02]} 39. Ra8+ {[%clk 0:00:42]}  Kf7 {[%clk 0:00:02]} 40. b8=Q {[%clk 0:00:43]}  Rxb8 {[%clk 0:00:02]} 41. Rxb8 {[%clk 0:00:43]}  Nf5 {[%clk 0:00:02]} 42. Rb4 {[%clk 0:00:40]}  Ne3 {[%clk 0:00:02]} 43. a4 {[%clk 0:00:39]}  Nc4 {[%clk 0:00:02]} 44. Rb5 {[%clk 0:00:38]}  Kf6 {[%clk 0:00:03]} 45. a5 {[%clk 0:00:38]}  Nd6 {[%clk 0:00:04]} 46. Rb6 {[%clk 0:00:36]}  Nf5 {[%clk 0:00:03]} 47. a6 {[%clk 0:00:35]}  Nxd4 {[%clk 0:00:04]} 48. a7 {[%clk 0:00:35]}  Kf5 {[%clk 0:00:02]} 49. a8=Q {[%clk 0:00:35]}  e5 {[%clk 0:00:00]} 50. Qxd5 {[%clk 0:00:34]} 1-0


[Site "https://www.chess.com"]

[Event "Titled Tuesday Blitz July 4 Early 2023"]
[White "Vlassov, Nikolai"]
[Black "Vifleemskaia, Svetlana"]
[WhiteFideId "4103360"]
[BlackFideId "4129490"]
[WhiteElo "2628"]
[BlackElo "2339"]
[Result "1-0"]
[Round "1"]
[TimeControl "180+2"]
[Date "2023.07.04"]
[WhiteClock "0:00:05"]
[BlackClock "0:00:02"]
[Board "145"]

1. e4 {[%clk 0:02:57]}  e5 {[%clk 0:03:00]} 2. Bc4 {[%clk 0:02:55]}  Nf6 {[%clk 0:02:59]} 3. d3 {[%clk 0:02:54]}  c6 {[%clk 0:02:58]} 4. Nf3 {[%clk 0:02:54]}  d5 {[%clk 0:02:58]} 5. Bb3 {[%clk 0:02:53]}  Bd6 {[%clk 0:02:52]} 6. Nc3 {[%clk 0:02:52]}  d4 {[%clk 0:02:45]} 7. Ne2 {[%clk 0:02:51]}  h6 {[%clk 0:02:45]} 8. O-O {[%clk 0:02:48]}  c5 {[%clk 0:02:46]} 9. c3 {[%clk 0:02:47]}  Nc6 {[%clk 0:02:46]} 10. cxd4 {[%clk 0:02:46]}  cxd4 {[%clk 0:02:45]} 11. Ng3 {[%clk 0:02:45]}  g6 {[%clk 0:02:43]} 12. Bd2 {[%clk 0:02:43]}  Qe7 {[%clk 0:02:42]} 13. Rc1 {[%clk 0:02:41]}  Be6 {[%clk 0:02:41]} 14. h3 {[%clk 0:02:27]}  Kf8 {[%clk 0:02:34]} 15. Nh2 {[%clk 0:02:23]}  Kg7 {[%clk 0:02:31]} 16. Ng4 {[%clk 0:02:22]}  Nxg4 {[%clk 0:02:12]} 17. hxg4 {[%clk 0:02:21]}  Qd7 {[%clk 0:02:12]} 18. f3 {[%clk 0:02:09]}  Qe7 {[%clk 0:02:02]} 19. Kf2 {[%clk 0:02:06]}  Nb4 {[%clk 0:01:52]} 20. Ke2 {[%clk 0:01:36]}  Rac8 {[%clk 0:01:37]} 21. Rh1 {[%clk 0:01:34]}  Rxc1 {[%clk 0:01:26]} 22. Bxc1 {[%clk 0:01:34]}  Nxa2 {[%clk 0:01:14]} 23. Bxa2 {[%clk 0:01:25]}  Bxa2 {[%clk 0:01:13]} 24. b3 {[%clk 0:01:25]}  Qe6 {[%clk 0:01:01]} 25. Qd2 {[%clk 0:01:24]}  Bxb3 {[%clk 0:00:41]} 26. Rxh6 {[%clk 0:01:23]}  Rxh6 {[%clk 0:00:35]} 27. Qxh6+ {[%clk 0:01:22]}  Kg8 {[%clk 0:00:35]} 28. Bg5 {[%clk 0:01:15]}  Bf8 {[%clk 0:00:35]} 29. Qh4 {[%clk 0:01:14]}  Bg7 {[%clk 0:00:34]} 30. Nf5 {[%clk 0:00:47]}  gxf5 {[%clk 0:00:29]} 31. gxf5 {[%clk 0:00:48]}  Qc6 {[%clk 0:00:20]} 32. f6 {[%clk 0:00:48]}  Bf8 {[%clk 0:00:17]} 33. Qg3 {[%clk 0:00:23]}  Kh7 {[%clk 0:00:15]} 34. Qh4+ {[%clk 0:00:16]}  Kg8 {[%clk 0:00:15]} 35. Bd2 {[%clk 0:00:15]}  Qc5 {[%clk 0:00:09]} 36. Qg5+ {[%clk 0:00:14]}  Kh7 {[%clk 0:00:10]} 37. Qh5+ {[%clk 0:00:15]}  Kg8 {[%clk 0:00:10]} 38. Bh6 {[%clk 0:00:12]}  Bxh6 {[%clk 0:00:06]} 39. Qxh6 {[%clk 0:00:12]}  Qf8 {[%clk 0:00:07]} 40. Qg5+ {[%clk 0:00:12]}  Kh7 {[%clk 0:00:07]} 41. Qf5+ {[%clk 0:00:12]}  Kg8 {[%clk 0:00:07]} 42. Qxe5 {[%clk 0:00:12]}  Be6 {[%clk 0:00:04]} 43. Qxd4 {[%clk 0:00:12]}  Qh6 {[%clk 0:00:04]} 44. Qe5 {[%clk 0:00:11]}  Kh7 {[%clk 0:00:04]} 45. d4 {[%clk 0:00:10]}  Qg6 {[%clk 0:00:02]} 46. g4 {[%clk 0:00:09]}  Bxg4 {[%clk 0:00:01]} 47. fxg4 {[%clk 0:00:08]}  Qxg4+ {[%clk 0:00:02]} 48. Kd3 {[%clk 0:00:09]}  Qf3+ {[%clk 0:00:02]} 49. Kc4 {[%clk 0:00:09]}  Qe2+ {[%clk 0:00:02]} 50. Kd5 {[%clk 0:00:09]}  Qb5+ {[%clk 0:00:02]} 51. Kd6 {[%clk 0:00:08]}  Qxe5+ {[%clk 0:00:02]} 52. dxe5 {[%clk 0:00:08]}  a5 {[%clk 0:00:02]} 53. e6 {[%clk 0:00:07]}  fxe6 {[%clk 0:00:02]} 54. f7 {[%clk 0:00:07]}  a4 {[%clk 0:00:02]} 55. f8=Q {[%clk 0:00:06]}  a3 {[%clk 0:00:02]} 56. Qf7+ {[%clk 0:00:04]}  Kh6 {[%clk 0:00:02]} 57. Qf6+ {[%clk 0:00:04]}  Kh5 {[%clk 0:00:02]} 58. Ke5 {[%clk 0:00:04]}  a2 {[%clk 0:00:02]} 59. Kf4 {[%clk 0:00:05]}  a1=Q {[%clk 0:00:02]} 60. Qg5# {[%clk 0:00:05]} 1-0


[Site "https://www.chess.com"]

[Event "Titled Tuesday Blitz July 4 Early 2023"]
[White "benny_aizenberg"]
[Black "Shtompel, Yuriy"]
[BlackFideId "14168278"]
[WhiteElo "2623"]
[BlackElo "2332"]
[Result "1-0"]
[Round "1"]
[TimeControl "180+2"]
[Date "2023.07.04"]
[WhiteClock "0:00:11"]
[BlackClock "0:00:14"]
[Board "149"]

1. f4 {[%clk 0:02:46]}  d5 {[%clk 0:02:57]} 2. Nf3 {[%clk 0:02:46]}  c5 {[%clk 0:02:57]} 3. g3 {[%clk 0:02:44]}  Nc6 {[%clk 0:02:57]} 4. Bg2 {[%clk 0:02:45]}  Nf6 {[%clk 0:02:57]} 5. O-O {[%clk 0:02:43]}  Bg4 {[%clk 0:02:56]} 6. d3 {[%clk 0:02:41]}  e6 {[%clk 0:02:53]} 7. Qe1 {[%clk 0:02:32]}  Be7 {[%clk 0:02:38]} 8. c3 {[%clk 0:02:26]}  O-O {[%clk 0:02:21]} 9. e4 {[%clk 0:02:23]}  dxe4 {[%clk 0:02:11]} 10. dxe4 {[%clk 0:02:24]}  Bxf3 {[%clk 0:02:11]} 11. Bxf3 {[%clk 0:02:22]}  e5 {[%clk 0:02:12]} 12. f5 {[%clk 0:02:19]}  Qd3 {[%clk 0:01:59]} 13. Na3 {[%clk 0:01:57]}  a6 {[%clk 0:01:41]} 14. g4 {[%clk 0:01:52]}  c4 {[%clk 0:01:39]} 15. g5 {[%clk 0:01:46]}  Nd7 {[%clk 0:01:38]} 16. Be3 {[%clk 0:01:20]}  b5 {[%clk 0:01:22]} 17. Rd1 {[%clk 0:01:18]}  Qxe3+ {[%clk 0:01:20]} 18. Qxe3 {[%clk 0:01:13]}  Bc5 {[%clk 0:01:21]} 19. Nc2 {[%clk 0:00:50]}  Bxe3+ {[%clk 0:01:17]} 20. Nxe3 {[%clk 0:00:50]}  Nc5 {[%clk 0:01:15]} 21. Rd6 {[%clk 0:00:49]}  Rac8 {[%clk 0:01:00]} 22. Rfd1 {[%clk 0:00:43]}  Rfd8 {[%clk 0:00:54]} 23. R1d5 {[%clk 0:00:28]}  Rxd6 {[%clk 0:00:46]} 24. Rxd6 {[%clk 0:00:28]}  Kf8 {[%clk 0:00:32]} 25. f6 {[%clk 0:00:26]}  g6 {[%clk 0:00:31]} 26. Bg4 {[%clk 0:00:24]}  Nxe4 {[%clk 0:00:23]} 27. Rd1 {[%clk 0:00:16]}  Rd8 {[%clk 0:00:21]} 28. Bf3 {[%clk 0:00:14]}  Rxd1+ {[%clk 0:00:05]} 29. Nxd1 {[%clk 0:00:15]}  Nxg5 {[%clk 0:00:03]} 30. Bxc6 {[%clk 0:00:16]}  e4 {[%clk 0:00:03]} 31. Bb7 {[%clk 0:00:15]}  Nf3+ {[%clk 0:00:02]} 32. Kg2 {[%clk 0:00:12]}  a5 {[%clk 0:00:01]} 33. Bxe4 {[%clk 0:00:12]}  Ne5 {[%clk 0:00:01]} 34. Kg3 {[%clk 0:00:11]}  Nd7 {[%clk 0:00:02]} 35. Bc6 {[%clk 0:00:10]}  Nxf6 {[%clk 0:00:03]} 36. Bxb5 {[%clk 0:00:10]}  Ke7 {[%clk 0:00:02]} 37. Bxc4 {[%clk 0:00:10]}  Ne4+ {[%clk 0:00:03]} 38. Kf4 {[%clk 0:00:10]}  Nd2 {[%clk 0:00:03]} 39. Nf2 {[%clk 0:00:10]}  Nxc4 {[%clk 0:00:03]} 40. b3 {[%clk 0:00:10]}  Nd2 {[%clk 0:00:04]} 41. c4 {[%clk 0:00:10]}  a4 {[%clk 0:00:04]} 42. bxa4 {[%clk 0:00:05]}  Nxc4 {[%clk 0:00:04]} 43. Ne4 {[%clk 0:00:06]}  f5 {[%clk 0:00:04]} 44. Nc3 {[%clk 0:00:06]}  Kf6 {[%clk 0:00:04]} 45. Nd5+ {[%clk 0:00:06]}  Ke6 {[%clk 0:00:04]} 46. Ne3 {[%clk 0:00:05]}  Na5 {[%clk 0:00:02]} 47. h4 {[%clk 0:00:03]}  h6 {[%clk 0:00:02]} 48. Nc2 {[%clk 0:00:02]}  Kf6 {[%clk 0:00:03]} 49. Nd4 {[%clk 0:00:03]}  g5+ {[%clk 0:00:03]} 50. hxg5+ {[%clk 0:00:03]}  hxg5+ {[%clk 0:00:04]} 51. Kg3 {[%clk 0:00:04]}  Ke5 {[%clk 0:00:05]} 52. Nf3+ {[%clk 0:00:04]}  Kf6 {[%clk 0:00:05]} 53. Nd4 {[%clk 0:00:05]}  Kg6 {[%clk 0:00:04]} 54. Nb3 {[%clk 0:00:05]}  Nb7 {[%clk 0:00:05]} 55. a5 {[%clk 0:00:05]}  Nd6 {[%clk 0:00:02]} 56. a6 {[%clk 0:00:05]}  Nc8 {[%clk 0:00:02]} 57. Nd4 {[%clk 0:00:05]}  Kf6 {[%clk 0:00:02]} 58. Nb5 {[%clk 0:00:05]}  f4+ {[%clk 0:00:01]} 59. Kg4 {[%clk 0:00:05]}  Ke5 {[%clk 0:00:02]} 60. a7 {[%clk 0:00:05]}  Nxa7 {[%clk 0:00:02]} 61. Nxa7 {[%clk 0:00:05]}  Ke4 {[%clk 0:00:03]} 62. Nb5 {[%clk 0:00:05]}  f3 {[%clk 0:00:03]} 63. Nc3+ {[%clk 0:00:05]}  Ke3 {[%clk 0:00:03]} 64. Kg3 {[%clk 0:00:06]}  g4 {[%clk 0:00:02]} 65. Nd1+ {[%clk 0:00:06]}  Ke2 {[%clk 0:00:02]} 66. Nf2 {[%clk 0:00:05]}  Ke3 {[%clk 0:00:02]} 67. Nxg4+ {[%clk 0:00:03]}  Kd4 {[%clk 0:00:03]} 68. Kxf3 {[%clk 0:00:03]}  Kc3 {[%clk 0:00:02]} 69. Ne3 {[%clk 0:00:03]}  Kb4 {[%clk 0:00:02]} 70. Nc2+ {[%clk 0:00:04]}  Ka4 {[%clk 0:00:02]} 71. Ke3 {[%clk 0:00:04]}  Kb5 {[%clk 0:00:03]} 72. Kd3 {[%clk 0:00:04]}  Kc5 {[%clk 0:00:03]} 73. Kc3 {[%clk 0:00:05]}  Kb5 {[%clk 0:00:04]} 74. Kb3 {[%clk 0:00:06]}  Ka6 {[%clk 0:00:04]} 75. a4 {[%clk 0:00:07]}  Ka5 {[%clk 0:00:05]} 76. Ka3 {[%clk 0:00:08]}  Ka6 {[%clk 0:00:06]} 77. Nb4+ {[%clk 0:00:08]}  Ka5 {[%clk 0:00:07]} 78. Nd3 {[%clk 0:00:09]}  Ka6 {[%clk 0:00:08]} 79. Nb2 {[%clk 0:00:10]}  Ka5 {[%clk 0:00:08]} 80. Kb3 {[%clk 0:00:11]}  Kb6 {[%clk 0:00:09]} 81. Kb4 {[%clk 0:00:11]}  Ka6 {[%clk 0:00:10]} 82. a5 {[%clk 0:00:12]}  Ka7 {[%clk 0:00:10]} 83. Kb5 {[%clk 0:00:13]}  Kb7 {[%clk 0:00:11]} 84. Nc4 {[%clk 0:00:13]}  Ka7 {[%clk 0:00:12]} 85. a6 {[%clk 0:00:13]}  Ka8 {[%clk 0:00:12]} 86. Kb6 {[%clk 0:00:13]}  Kb8 {[%clk 0:00:13]} 87. Ne5 {[%clk 0:00:13]}  Ka8 {[%clk 0:00:14]} 88. Ng6 {[%clk 0:00:10]}  Kb8 {[%clk 0:00:14]} 89. Nf4 {[%clk 0:00:09]}  Ka8 {[%clk 0:00:14]} 90. Ne6 {[%clk 0:00:10]}  Kb8 {[%clk 0:00:15]} 91. a7+ {[%clk 0:00:11]}  Kc8 {[%clk 0:00:14]} 92. a8=Q+ {[%clk 0:00:11]}  Kd7 {[%clk 0:00:14]} 93. Qd5+ {[%clk 0:00:11]} 1-0


[Site "https://www.chess.com"]

[Event "Titled Tuesday Blitz July 4 Early 2023"]
[White "Komov, Roman"]
[Black "Cardozo Munar, Carlos Eduardo"]
[WhiteFideId "24175714"]
[BlackFideId "4409477"]
[WhiteElo "2622"]
[BlackElo "2330"]
[Result "1-0"]
[Round "1"]
[TimeControl "180+2"]
[Date "2023.07.04"]
[WhiteClock "0:00:57"]
[BlackClock "0:00:26"]
[Board "151"]

1. e4 {[%clk 0:02:59]}  e6 {[%clk 0:02:38]} 2. d4 {[%clk 0:02:59]}  d5 {[%clk 0:02:38]} 3. e5 {[%clk 0:02:59]}  c5 {[%clk 0:02:32]} 4. c3 {[%clk 0:03:00]}  Nc6 {[%clk 0:02:31]} 5. Nf3 {[%clk 0:03:01]}  Qb6 {[%clk 0:02:30]} 6. a3 {[%clk 0:02:59]}  Nh6 {[%clk 0:02:30]} 7. b4 {[%clk 0:02:58]}  cxd4 {[%clk 0:02:26]} 8. Bxh6 {[%clk 0:02:58]}  gxh6 {[%clk 0:02:25]} 9. b5 {[%clk 0:02:58]}  Nxe5 {[%clk 0:02:18]} 10. Nxe5 {[%clk 0:02:50]}  dxc3 {[%clk 0:02:17]} 11. Bd3 {[%clk 0:02:27]}  Bg7 {[%clk 0:02:15]} 12. Qh5 {[%clk 0:02:20]}  Qc7 {[%clk 0:02:14]} 13. f4 {[%clk 0:01:59]}  O-O {[%clk 0:02:01]} 14. O-O {[%clk 0:01:59]}  a6 {[%clk 0:01:47]} 15. bxa6 {[%clk 0:01:51]}  bxa6 {[%clk 0:01:47]} 16. Ra2 {[%clk 0:01:48]}  Rb8 {[%clk 0:01:47]} 17. Rc2 {[%clk 0:01:46]}  d4 {[%clk 0:01:47]} 18. Nd2 {[%clk 0:01:43]}  Rb2 {[%clk 0:01:41]} 19. Ndf3 {[%clk 0:01:41]}  Qd6 {[%clk 0:01:28]} 20. Rxb2 {[%clk 0:01:32]}  cxb2 {[%clk 0:01:29]} 21. Ng5 {[%clk 0:01:27]}  f5 {[%clk 0:01:19]} 22. Ngf7 {[%clk 0:01:27]}  Qxa3 {[%clk 0:01:02]} 23. Nxh6+ {[%clk 0:01:27]}  Kh8 {[%clk 0:00:59]} 24. Nef7+ {[%clk 0:01:13]}  Rxf7 {[%clk 0:00:51]} 25. Nxf7+ {[%clk 0:01:14]}  Kg8 {[%clk 0:00:51]} 26. Ng5 {[%clk 0:01:13]}  h6 {[%clk 0:00:49]} 27. Qf7+ {[%clk 0:01:09]}  Kh8 {[%clk 0:00:47]} 28. Qe8+ {[%clk 0:01:09]}  Bf8 {[%clk 0:00:47]} 29. Nf7+ {[%clk 0:00:58]}  Kg7 {[%clk 0:00:46]} 30. Ne5 {[%clk 0:00:58]}  Qe7 {[%clk 0:00:33]} 31. Qg6+ {[%clk 0:00:56]}  Kh8 {[%clk 0:00:26]} 32. Nf7+ {[%clk 0:00:57]} 1-0


[Site "https://www.chess.com"]

[Event "Titled Tuesday Blitz July 4 Early 2023"]
[White "Weishaeutel, Moritz"]
[Black "Shapiro, Daniel"]
[WhiteFideId "12967300"]
[BlackFideId "2001780"]
[WhiteElo "2620"]
[BlackElo "2327"]
[Result "1-0"]
[Round "1"]
[TimeControl "180+2"]
[Date "2023.07.04"]
[WhiteClock "0:01:19"]
[BlackClock "0:00:32"]
[Board "153"]

1. e4 {[%clk 0:03:00]}  e5 {[%clk 0:02:12]} 2. d4 {[%clk 0:03:00]}  exd4 {[%clk 0:02:11]} 3. Qxd4 {[%clk 0:03:01]}  Nc6 {[%clk 0:02:11]} 4. Qe3 {[%clk 0:03:01]}  Nf6 {[%clk 0:02:10]} 5. e5 {[%clk 0:03:00]}  Nd5 {[%clk 0:02:03]} 6. Qe4 {[%clk 0:03:01]}  Nb6 {[%clk 0:01:58]} 7. Nf3 {[%clk 0:03:02]}  Be7 {[%clk 0:01:56]} 8. Nc3 {[%clk 0:03:02]}  d5 {[%clk 0:01:55]} 9. exd6 {[%clk 0:03:01]}  Qxd6 {[%clk 0:01:55]} 10. Nb5 {[%clk 0:03:00]}  Qb4+ {[%clk 0:01:34]} 11. Qxb4 {[%clk 0:03:01]}  Nxb4 {[%clk 0:01:29]} 12. Nxc7+ {[%clk 0:02:48]}  Kd8 {[%clk 0:01:29]} 13. Nxa8 {[%clk 0:02:49]}  Nxc2+ {[%clk 0:01:28]} 14. Kd1 {[%clk 0:02:50]}  Nxa1 {[%clk 0:01:28]} 15. Nxb6 {[%clk 0:02:50]}  axb6 {[%clk 0:01:28]} 16. Bd3 {[%clk 0:02:32]}  Be6 {[%clk 0:01:22]} 17. b3 {[%clk 0:02:29]}  Bf6 {[%clk 0:01:22]} 18. Bg5 {[%clk 0:02:27]}  Ke7 {[%clk 0:01:17]} 19. Kd2 {[%clk 0:02:22]}  Bxb3 {[%clk 0:01:09]} 20. Bxf6+ {[%clk 0:02:20]}  Kxf6 {[%clk 0:01:08]} 21. Rxa1 {[%clk 0:02:21]}  Ra8 {[%clk 0:01:06]} 22. a3 {[%clk 0:02:00]}  Bd5 {[%clk 0:01:05]} 23. Rb1 {[%clk 0:01:54]}  Rxa3 {[%clk 0:01:03]} 24. Rxb6+ {[%clk 0:01:53]}  Ke7 {[%clk 0:00:57]} 25. Nd4 {[%clk 0:01:33]}  g6 {[%clk 0:00:52]} 26. f3 {[%clk 0:01:30]}  Ra2+ {[%clk 0:00:52]} 27. Bc2 {[%clk 0:01:27]}  Ra3 {[%clk 0:00:48]} 28. Bb3 {[%clk 0:01:23]}  Bxb3 {[%clk 0:00:45]} 29. Rxb3 {[%clk 0:01:24]}  Ra2+ {[%clk 0:00:46]} 30. Nc2 {[%clk 0:01:23]}  Ra7 {[%clk 0:00:43]} 31. Ra3 {[%clk 0:01:23]}  Rxa3 {[%clk 0:00:41]} 32. Nxa3 {[%clk 0:01:24]}  Kd6 {[%clk 0:00:41]} 33. Kc3 {[%clk 0:01:20]}  Kc5 {[%clk 0:00:42]} 34. Nc4 {[%clk 0:01:19]}  b5 {[%clk 0:00:42]} 35. Ne5 {[%clk 0:01:19]}  f6 {[%clk 0:00:32]} 36. Nd7+ {[%clk 0:01:19]} 1-0


[Site "https://www.chess.com"]